[Event "Titled Tuesday Blitz March 14 Late 2023"]
[White "Khismatullin, Denis"]
[Black "Deac, Bogdan-Daniel"]
[WhiteFideId "4142578"]
[BlackFideId "1226380"]
[WhiteElo "2531"]
[BlackElo "2649"]
[Result "1-0"]
[Round "07"]
[TimeControl "180+2"]
[Date "2023.03.14"]
[WhiteClock "0:00:14"]
[BlackClock "0:00:02"]

1. d4 {[%clk 0:02:56]}  Nf6 {[%clk 0:02:58]} 2. c4 {[%clk 0:02:56]}  e6 {[%clk 0:02:58]} 3. Nf3 {[%clk 0:02:56]}  d5 {[%clk 0:02:59]} 4. Nc3 {[%clk 0:02:56]}  c5 {[%clk 0:02:58]} 5. cxd5 {[%clk 0:02:54]}  cxd4 {[%clk 0:02:59]} 6. Qxd4 {[%clk 0:02:50]}  exd5 {[%clk 0:02:59]} 7. Bg5 {[%clk 0:02:47]}  Be7 {[%clk 0:02:59]} 8. e3 {[%clk 0:02:45]}  O-O {[%clk 0:02:59]} 9. Rd1 {[%clk 0:02:41]}  Nc6 {[%clk 0:02:58]} 10. Qa4 {[%clk 0:02:35]}  Bb4 {[%clk 0:02:56]} 11. Bb5 {[%clk 0:02:22]}  h6 {[%clk 0:02:43]} 12. Bh4 {[%clk 0:02:17]}  g5 {[%clk 0:02:20]} 13. Bxc6 {[%clk 0:02:16]}  Bxc3+ {[%clk 0:02:08]} 14. bxc3 {[%clk 0:02:17]}  bxc6 {[%clk 0:01:25]} 15. Bg3 {[%clk 0:02:17]}  Ne4 {[%clk 0:01:08]} 16. Qxc6 {[%clk 0:02:05]}  Be6 {[%clk 0:01:07]} 17. O-O {[%clk 0:01:39]}  Rc8 {[%clk 0:00:55]} 18. Qa6 {[%clk 0:01:25]}  Nxc3 {[%clk 0:00:54]} 19. Rd2 {[%clk 0:01:20]}  Qb6 {[%clk 0:00:36]} 20. Qxb6 {[%clk 0:01:20]}  axb6 {[%clk 0:00:37]} 21. Rb2 {[%clk 0:01:19]}  b5 {[%clk 0:00:29]} 22. Nd4 {[%clk 0:01:14]}  Rc4 {[%clk 0:00:25]} 23. Nxb5 {[%clk 0:00:57]}  Nxb5 {[%clk 0:00:23]} 24. Rxb5 {[%clk 0:00:58]}  Ra8 {[%clk 0:00:18]} 25. Be5 {[%clk 0:00:47]}  Rxa2 {[%clk 0:00:16]} 26. Rb8+ {[%clk 0:00:46]}  Rc8 {[%clk 0:00:16]} 27. Rxc8+ {[%clk 0:00:44]}  Bxc8 {[%clk 0:00:17]} 28. h3 {[%clk 0:00:44]}  Be6 {[%clk 0:00:12]} 29. Rb1 {[%clk 0:00:43]}  Ra8 {[%clk 0:00:12]} 30. Rb7 {[%clk 0:00:43]}  Kh7 {[%clk 0:00:12]} 31. Bd4 {[%clk 0:00:42]}  Kg6 {[%clk 0:00:12]} 32. f3 {[%clk 0:00:42]}  h5 {[%clk 0:00:12]} 33. g4 {[%clk 0:00:42]}  hxg4 {[%clk 0:00:11]} 34. hxg4 {[%clk 0:00:43]}  Rc8 {[%clk 0:00:09]} 35. Kf2 {[%clk 0:00:42]}  Ra8 {[%clk 0:00:08]} 36. Kg3 {[%clk 0:00:41]}  Rc8 {[%clk 0:00:06]} 37. f4 {[%clk 0:00:38]}  gxf4+ {[%clk 0:00:06]} 38. exf4 {[%clk 0:00:39]}  Rc4 {[%clk 0:00:06]} 39. f5+ {[%clk 0:00:36]}  Bxf5 {[%clk 0:00:07]} 40. gxf5+ {[%clk 0:00:37]}  Kxf5 {[%clk 0:00:08]} 41. Rxf7+ {[%clk 0:00:37]}  Ke4 {[%clk 0:00:08]} 42. Bf6 {[%clk 0:00:35]}  d4 {[%clk 0:00:08]} 43. Rd7 {[%clk 0:00:34]}  Ke3 {[%clk 0:00:07]} 44. Re7+ {[%clk 0:00:34]}  Kd2 {[%clk 0:00:06]} 45. Kf2 {[%clk 0:00:34]}  d3 {[%clk 0:00:05]} 46. Bg5+ {[%clk 0:00:29]}  Kc2 {[%clk 0:00:05]} 47. Rd7 {[%clk 0:00:29]}  Rc5 {[%clk 0:00:04]} 48. Bf4 {[%clk 0:00:29]}  Rc4 {[%clk 0:00:04]} 49. Be3 {[%clk 0:00:29]}  Re4 {[%clk 0:00:04]} 50. Rc7+ {[%clk 0:00:28]}  Kb3 {[%clk 0:00:04]} 51. Kf3 {[%clk 0:00:28]}  Re8 {[%clk 0:00:04]} 52. Bd2 {[%clk 0:00:27]}  Re6 {[%clk 0:00:02]} 53. Rc3+ {[%clk 0:00:25]}  Kb2 {[%clk 0:00:02]} 54. Rxd3 {[%clk 0:00:26]}  Kc2 {[%clk 0:00:03]} 55. Rd5 {[%clk 0:00:27]}  Re8 {[%clk 0:00:03]} 56. Bf4 {[%clk 0:00:27]}  Re6 {[%clk 0:00:03]} 57. Be5 {[%clk 0:00:27]}  Rh6 {[%clk 0:00:03]} 58. Ke4 {[%clk 0:00:27]}  Rh3 {[%clk 0:00:03]} 59. Rb5 {[%clk 0:00:26]}  Rb3 {[%clk 0:00:02]} 60. Ra5 {[%clk 0:00:25]}  Kb1 {[%clk 0:00:02]} 61. Kd4 {[%clk 0:00:23]}  Kc2 {[%clk 0:00:03]} 62. Kc4 {[%clk 0:00:23]}  Rf3 {[%clk 0:00:03]} 63. Bd4 {[%clk 0:00:22]}  Kd2 {[%clk 0:00:02]} 64. Ra2+ {[%clk 0:00:22]}  Ke1 {[%clk 0:00:03]} 65. Kd5 {[%clk 0:00:22]}  Kf1 {[%clk 0:00:03]} 66. Ke4 {[%clk 0:00:22]}  Rh3 {[%clk 0:00:03]} 67. Rf2+ {[%clk 0:00:20]}  Ke1 {[%clk 0:00:03]} 68. Rg2 {[%clk 0:00:20]}  Kf1 {[%clk 0:00:03]} 69. Rf2+ {[%clk 0:00:20]}  Ke1 {[%clk 0:00:03]} 70. Be3 {[%clk 0:00:21]}  Rh8 {[%clk 0:00:02]} 71. Ra2 {[%clk 0:00:20]}  Rh3 {[%clk 0:00:01]} 72. Kd3 {[%clk 0:00:20]}  Kf1 {[%clk 0:00:01]} 73. Rf2+ {[%clk 0:00:19]}  Ke1 {[%clk 0:00:01]} 74. Rg2 {[%clk 0:00:19]}  Rh1 {[%clk 0:00:01]} 75. Re2+ {[%clk 0:00:16]}  Kf1 {[%clk 0:00:01]} 76. Rf2+ {[%clk 0:00:16]}  Ke1 {[%clk 0:00:02]} 77. Rf8 {[%clk 0:00:15]}  Rh3 {[%clk 0:00:02]} 78. Rf5 {[%clk 0:00:14]} 1-0


[Site "https://www.chess.com"]

[Event "Titled Tuesday Blitz March 14 Late 2023"]
[White "Vachier-Lagrave, Maxime"]
[Black "Nakamura, Hikaru"]
[WhiteFideId "623539"]
[BlackFideId "2016192"]
[WhiteElo "2740"]
[BlackElo "2879"]
[Result "0-1"]
[Round "07"]
[TimeControl "180+2"]
[Date "2023.03.14"]
[WhiteClock "0:00:03"]
[BlackClock "0:00:26"]

1. e4 {[%clk 0:03:00]}  e5 {[%clk 0:02:57]} 2. Nf3 {[%clk 0:03:00]}  Nc6 {[%clk 0:02:57]} 3. Bb5 {[%clk 0:03:00]}  a6 {[%clk 0:02:55]} 4. Ba4 {[%clk 0:03:00]}  d6 {[%clk 0:02:56]} 5. c3 {[%clk 0:02:58]}  Bd7 {[%clk 0:02:56]} 6. d4 {[%clk 0:02:58]}  Nf6 {[%clk 0:02:56]} 7. Nbd2 {[%clk 0:02:57]}  g6 {[%clk 0:02:55]} 8. O-O {[%clk 0:02:57]}  Bg7 {[%clk 0:02:55]} 9. Re1 {[%clk 0:02:55]}  b5 {[%clk 0:02:53]} 10. Bc2 {[%clk 0:02:50]}  O-O {[%clk 0:02:47]} 11. h3 {[%clk 0:02:45]}  Re8 {[%clk 0:02:42]} 12. Nf1 {[%clk 0:02:45]}  Na5 {[%clk 0:02:42]} 13. b3 {[%clk 0:02:02]}  c5 {[%clk 0:02:36]} 14. d5 {[%clk 0:02:02]}  Nb7 {[%clk 0:02:33]} 15. a4 {[%clk 0:01:58]}  bxa4 {[%clk 0:02:29]} 16. bxa4 {[%clk 0:01:58]}  Na5 {[%clk 0:02:27]} 17. Ne3 {[%clk 0:01:54]}  Bc8 {[%clk 0:02:21]} 18. c4 {[%clk 0:01:51]}  Bh6 {[%clk 0:02:15]} 19. Bd2 {[%clk 0:01:48]}  Qc7 {[%clk 0:02:12]} 20. Qe2 {[%clk 0:01:34]}  Bd7 {[%clk 0:02:11]} 21. Bc3 {[%clk 0:01:27]}  Reb8 {[%clk 0:02:10]} 22. Nd2 {[%clk 0:01:27]}  Nb7 {[%clk 0:01:57]} 23. Kh2 {[%clk 0:01:23]}  Qc8 {[%clk 0:01:54]} 24. Qf1 {[%clk 0:01:13]}  Nd8 {[%clk 0:01:51]} 25. g3 {[%clk 0:01:12]}  Bg7 {[%clk 0:01:44]} 26. a5 {[%clk 0:00:57]}  Rb7 {[%clk 0:01:42]} 27. Ba4 {[%clk 0:00:56]}  Bxa4 {[%clk 0:01:39]} 28. Rxa4 {[%clk 0:00:57]}  Rab8 {[%clk 0:01:38]} 29. Raa1 {[%clk 0:00:57]}  Ne8 {[%clk 0:01:35]} 30. Reb1 {[%clk 0:00:51]}  Bh6 {[%clk 0:01:25]} 31. Ng4 {[%clk 0:00:50]}  Bxd2 {[%clk 0:01:21]} 32. Bxd2 {[%clk 0:00:51]}  h5 {[%clk 0:01:21]} 33. Ne3 {[%clk 0:00:49]}  Nf6 {[%clk 0:01:19]} 34. Qd3 {[%clk 0:00:46]}  Rxb1 {[%clk 0:01:15]} 35. Rxb1 {[%clk 0:00:47]}  Rxb1 {[%clk 0:01:15]} 36. Qxb1 {[%clk 0:00:48]}  Qb7 {[%clk 0:01:16]} 37. Qxb7 {[%clk 0:00:48]}  Nxb7 {[%clk 0:01:16]} 38. f3 {[%clk 0:00:49]}  Nh7 {[%clk 0:01:10]} 39. Kg2 {[%clk 0:00:46]}  f6 {[%clk 0:01:08]} 40. f4 {[%clk 0:00:42]}  Nf8 {[%clk 0:01:06]} 41. h4 {[%clk 0:00:35]}  Nh7 {[%clk 0:01:04]} 42. Kf3 {[%clk 0:00:32]}  Nd8 {[%clk 0:01:01]} 43. Nd1 {[%clk 0:00:29]}  Nf7 {[%clk 0:01:00]} 44. Nc3 {[%clk 0:00:27]}  Kf8 {[%clk 0:00:52]} 45. Nb5 {[%clk 0:00:28]}  Ke7 {[%clk 0:00:52]} 46. Nc7 {[%clk 0:00:23]}  Kd7 {[%clk 0:00:53]} 47. Nxa6 {[%clk 0:00:24]}  Kc8 {[%clk 0:00:53]} 48. Be3 {[%clk 0:00:24]}  exf4 {[%clk 0:00:49]} 49. gxf4 {[%clk 0:00:24]}  g5 {[%clk 0:00:49]} 50. hxg5 {[%clk 0:00:24]}  fxg5 {[%clk 0:00:49]} 51. e5 {[%clk 0:00:17]}  gxf4 {[%clk 0:00:45]} 52. e6 {[%clk 0:00:10]}  fxe3 {[%clk 0:00:43]} 53. Kxe3 {[%clk 0:00:02]}  Ne5 {[%clk 0:00:39]} 54. e7 {[%clk 0:00:02]}  Nf6 {[%clk 0:00:39]} 55. Kf4 {[%clk 0:00:03]}  Ned7 {[%clk 0:00:27]} 56. Kf5 {[%clk 0:00:03]}  h4 {[%clk 0:00:28]} 57. Ke6 {[%clk 0:00:03]}  h3 {[%clk 0:00:28]} 58. Nxc5 {[%clk 0:00:03]}  dxc5 {[%clk 0:00:26]} 0-1


[Site "https://www.chess.com"]

[Event "Titled Tuesday Blitz March 14 Late 2023"]
[White "Naroditsky, Daniel"]
[Black "Svane, Frederik"]
[WhiteFideId "2026961"]
[BlackFideId "12923044"]
[WhiteElo "2633"]
[BlackElo "2502"]
[Result "1-0"]
[Round "07"]
[TimeControl "180+2"]
[Date "2023.03.14"]
[WhiteClock "0:00:32"]
[BlackClock "0:00:03"]

1. d4 {[%clk 0:03:00]}  Nf6 {[%clk 0:02:53]} 2. Nc3 {[%clk 0:03:01]}  d5 {[%clk 0:02:53]} 3. Bf4 {[%clk 0:03:01]}  e6 {[%clk 0:02:52]} 4. Nb5 {[%clk 0:03:01]}  Na6 {[%clk 0:02:53]} 5. e3 {[%clk 0:03:01]}  Be7 {[%clk 0:02:53]} 6. Nf3 {[%clk 0:03:02]}  O-O {[%clk 0:02:51]} 7. Be2 {[%clk 0:02:58]}  Nh5 {[%clk 0:02:51]} 8. Be5 {[%clk 0:02:58]}  c6 {[%clk 0:02:45]} 9. Nc3 {[%clk 0:02:57]}  f6 {[%clk 0:02:45]} 10. Bg3 {[%clk 0:02:57]}  c5 {[%clk 0:02:45]} 11. Bxa6 {[%clk 0:02:34]}  bxa6 {[%clk 0:02:46]} 12. dxc5 {[%clk 0:02:35]}  Bxc5 {[%clk 0:02:43]} 13. Nd4 {[%clk 0:02:35]}  Nxg3 {[%clk 0:02:39]} 14. hxg3 {[%clk 0:02:35]}  Qd7 {[%clk 0:02:30]} 15. Qh5 {[%clk 0:02:25]}  g6 {[%clk 0:02:28]} 16. Qh4 {[%clk 0:02:19]}  Qb7 {[%clk 0:01:57]} 17. O-O-O {[%clk 0:02:12]}  Rb8 {[%clk 0:01:58]} 18. Nb3 {[%clk 0:01:56]}  Bb4 {[%clk 0:01:55]} 19. Rd4 {[%clk 0:01:40]}  Rf7 {[%clk 0:01:52]} 20. e4 {[%clk 0:01:34]}  Bxc3 {[%clk 0:01:39]} 21. bxc3 {[%clk 0:01:35]}  a5 {[%clk 0:01:31]} 22. exd5 {[%clk 0:01:11]}  exd5 {[%clk 0:01:31]} 23. Rhd1 {[%clk 0:01:10]}  Be6 {[%clk 0:01:21]} 24. Ra4 {[%clk 0:01:07]}  Rc7 {[%clk 0:01:16]} 25. Qxf6 {[%clk 0:01:06]}  Qb6 {[%clk 0:01:11]} 26. Qd4 {[%clk 0:00:58]}  Rbc8 {[%clk 0:01:07]} 27. Rd3 {[%clk 0:00:48]}  Bf5 {[%clk 0:01:07]} 28. Re3 {[%clk 0:00:42]}  Qxd4 {[%clk 0:00:06]} 29. Nxd4 {[%clk 0:00:43]}  Rxc3 {[%clk 0:00:02]} 30. Rxc3 {[%clk 0:00:44]}  Rxc3 {[%clk 0:00:03]} 31. Rxa5 {[%clk 0:00:45]}  Be4 {[%clk 0:00:01]} 32. f3 {[%clk 0:00:45]}  Rc4 {[%clk 0:00:02]} 33. fxe4 {[%clk 0:00:42]}  Rxd4 {[%clk 0:00:02]} 34. exd5 {[%clk 0:00:43]}  Kg7 {[%clk 0:00:02]} 35. Rxa7+ {[%clk 0:00:40]}  Kf6 {[%clk 0:00:02]} 36. Rxh7 {[%clk 0:00:31]}  Rxd5 {[%clk 0:00:02]} 37. Rh4 {[%clk 0:00:32]}  Rg5 {[%clk 0:00:02]} 38. Rf4+ {[%clk 0:00:33]}  Ke5 {[%clk 0:00:02]} 39. Rf3 {[%clk 0:00:34]}  Rg4 {[%clk 0:00:02]} 40. Kb2 {[%clk 0:00:33]}  Kd5 {[%clk 0:00:02]} 41. Rc3 {[%clk 0:00:32]}  g5 {[%clk 0:00:02]} 42. Kb3 {[%clk 0:00:31]}  Re4 {[%clk 0:00:02]} 43. a4 {[%clk 0:00:32]}  Re1 {[%clk 0:00:02]} 44. Kb2 {[%clk 0:00:31]}  Rg1 {[%clk 0:00:03]} 45. a5 {[%clk 0:00:31]}  Rxg2 {[%clk 0:00:01]} 46. a6 {[%clk 0:00:32]}  Rh2 {[%clk 0:00:02]} 47. a7 {[%clk 0:00:32]}  Rh8 {[%clk 0:00:02]} 48. Ra3 {[%clk 0:00:32]}  Ra8 {[%clk 0:00:03]} 1-0


[Site "https://www.chess.com"]

[Event "Titled Tuesday Blitz March 14 Late 2023"]
[White "Erigaisi Arjun"]
[Black "Van Foreest, Jorden"]
[WhiteFideId "35009192"]
[BlackFideId "1039784"]
[WhiteElo "2737"]
[BlackElo "2633"]
[Result "1-0"]
[Round "07"]
[TimeControl "180+2"]
[Date "2023.03.14"]
[WhiteClock "0:00:03"]
[BlackClock "0:00:02"]

1. b3 {[%clk 0:03:00]}  b6 {[%clk 0:02:55]} 2. e4 {[%clk 0:03:00]}  Bb7 {[%clk 0:02:56]} 3. Nc3 {[%clk 0:03:00]}  c5 {[%clk 0:02:55]} 4. Nf3 {[%clk 0:02:55]}  e6 {[%clk 0:02:55]} 5. Be2 {[%clk 0:02:51]}  Nc6 {[%clk 0:02:53]} 6. O-O {[%clk 0:02:51]}  a6 {[%clk 0:02:49]} 7. d4 {[%clk 0:02:48]}  cxd4 {[%clk 0:02:49]} 8. Nxd4 {[%clk 0:02:49]}  Nxd4 {[%clk 0:02:41]} 9. Qxd4 {[%clk 0:02:50]}  Nf6 {[%clk 0:02:41]} 10. e5 {[%clk 0:02:45]}  Bc5 {[%clk 0:02:41]} 11. Qd3 {[%clk 0:02:45]}  Nd5 {[%clk 0:02:38]} 12. Nxd5 {[%clk 0:02:23]}  Bxd5 {[%clk 0:02:37]} 13. c4 {[%clk 0:02:23]}  Bc6 {[%clk 0:02:36]} 14. Qg3 {[%clk 0:02:24]}  Kf8 {[%clk 0:02:23]} 15. Be3 {[%clk 0:02:16]}  h5 {[%clk 0:02:21]} 16. Rad1 {[%clk 0:01:57]}  h4 {[%clk 0:02:21]} 17. Qh3 {[%clk 0:01:57]}  Qe7 {[%clk 0:02:14]} 18. Bc1 {[%clk 0:01:45]}  g6 {[%clk 0:02:01]} 19. Qg4 {[%clk 0:01:39]}  Rh5 {[%clk 0:01:55]} 20. Qh3 {[%clk 0:01:25]}  Rxe5 {[%clk 0:01:51]} 21. Qc3 {[%clk 0:01:17]}  f6 {[%clk 0:01:37]} 22. Bf3 {[%clk 0:01:14]}  Bxf3 {[%clk 0:01:26]} 23. Qxf3 {[%clk 0:01:15]}  Rd8 {[%clk 0:01:24]} 24. Qg4 {[%clk 0:01:07]}  Qh7 {[%clk 0:01:19]} 25. Bf4 {[%clk 0:00:52]}  Rf5 {[%clk 0:01:12]} 26. h3 {[%clk 0:00:52]}  d6 {[%clk 0:01:07]} 27. Bd2 {[%clk 0:00:48]}  Qh5 {[%clk 0:01:04]} 28. b4 {[%clk 0:00:46]}  Kf7 {[%clk 0:00:39]} 29. bxc5 {[%clk 0:00:44]}  Qxg4 {[%clk 0:00:38]} 30. hxg4 {[%clk 0:00:45]}  Rxc5 {[%clk 0:00:38]} 31. Rb1 {[%clk 0:00:41]}  Rb8 {[%clk 0:00:27]} 32. Rb4 {[%clk 0:00:35]}  a5 {[%clk 0:00:25]} 33. Ra4 {[%clk 0:00:35]}  Rbc8 {[%clk 0:00:24]} 34. Rb1 {[%clk 0:00:35]}  Rxc4 {[%clk 0:00:20]} 35. Rxc4 {[%clk 0:00:36]}  Rxc4 {[%clk 0:00:20]} 36. Rxb6 {[%clk 0:00:37]}  Rxg4 {[%clk 0:00:20]} 37. Bxa5 {[%clk 0:00:30]}  Ra4 {[%clk 0:00:19]} 38. Bc3 {[%clk 0:00:30]}  e5 {[%clk 0:00:16]} 39. Rxd6 {[%clk 0:00:28]}  Rxa2 {[%clk 0:00:16]} 40. f4 {[%clk 0:00:22]}  Rc2 {[%clk 0:00:14]} 41. Rc6 {[%clk 0:00:22]}  exf4 {[%clk 0:00:11]} 42. Rxf6+ {[%clk 0:00:22]}  Ke7 {[%clk 0:00:12]} 43. Bd4 {[%clk 0:00:21]}  g5 {[%clk 0:00:10]} 44. Rf5 {[%clk 0:00:21]}  Rd2 {[%clk 0:00:09]} 45. Bc5+ {[%clk 0:00:20]}  Ke6 {[%clk 0:00:09]} 46. Rxg5 {[%clk 0:00:21]}  Rd3 {[%clk 0:00:07]} 47. Rg6+ {[%clk 0:00:13]}  Kf5 {[%clk 0:00:07]} 48. Rg8 {[%clk 0:00:08]}  h3 {[%clk 0:00:07]} 49. gxh3 {[%clk 0:00:07]}  Rxh3 {[%clk 0:00:08]} 50. Bf2 {[%clk 0:00:07]}  Rh6 {[%clk 0:00:07]} 51. Kf1 {[%clk 0:00:07]}  Rg6 {[%clk 0:00:07]} 52. Rf8+ {[%clk 0:00:07]}  Rf6 {[%clk 0:00:08]} 53. Ra8 {[%clk 0:00:07]}  Re6 {[%clk 0:00:08]} 54. Ra4 {[%clk 0:00:07]}  Re4 {[%clk 0:00:08]} 55. Ra3 {[%clk 0:00:07]}  Kg4 {[%clk 0:00:08]} 56. Be1 {[%clk 0:00:07]}  Re3 {[%clk 0:00:08]} 57. Ra8 {[%clk 0:00:07]}  Re5 {[%clk 0:00:08]} 58. Bd2 {[%clk 0:00:07]}  Re4 {[%clk 0:00:07]} 59. Kf2 {[%clk 0:00:07]}  Rc4 {[%clk 0:00:07]} 60. Rg8+ {[%clk 0:00:06]}  Kf5 {[%clk 0:00:07]} 61. Kf3 {[%clk 0:00:07]}  Rd4 {[%clk 0:00:07]} 62. Rf8+ {[%clk 0:00:08]}  Ke6 {[%clk 0:00:08]} 63. Bxf4 {[%clk 0:00:08]}  Rd7 {[%clk 0:00:08]} 64. Ke4 {[%clk 0:00:08]}  Rf7 {[%clk 0:00:08]} 65. Ra8 {[%clk 0:00:08]}  Rf6 {[%clk 0:00:09]} 66. Bg5 {[%clk 0:00:06]}  Rg6 {[%clk 0:00:09]} 67. Ra5 {[%clk 0:00:07]}  Rg7 {[%clk 0:00:04]} 68. Ra6+ {[%clk 0:00:06]}  Kf7 {[%clk 0:00:05]} 69. Kf5 {[%clk 0:00:06]}  Kg8 {[%clk 0:00:03]} 70. Bf6 {[%clk 0:00:06]}  Rd7 {[%clk 0:00:02]} 71. Ke6 {[%clk 0:00:03]}  Rf7 {[%clk 0:00:02]} 72. Ra8+ {[%clk 0:00:02]}  Rf8 {[%clk 0:00:01]} 73. Ra7 {[%clk 0:00:02]}  Re8+ {[%clk 0:00:02]} 74. Kf5 {[%clk 0:00:01]}  Re1 {[%clk 0:00:02]} 75. Kg6 {[%clk 0:00:02]}  Rg1+ {[%clk 0:00:01]} 76. Bg5 {[%clk 0:00:02]}  Rf1 {[%clk 0:00:02]} 77. Rg7+ {[%clk 0:00:02]}  Kf8 {[%clk 0:00:02]} 78. Rh7 {[%clk 0:00:03]}  Ke8 {[%clk 0:00:02]} 79. Re7+ {[%clk 0:00:03]}  Kf8 {[%clk 0:00:03]} 80. Re4 {[%clk 0:00:04]}  Rg1 {[%clk 0:00:03]} 81. Rd4 {[%clk 0:00:03]}  Re1 {[%clk 0:00:02]} 82. Rh4 {[%clk 0:00:04]}  Ke8 {[%clk 0:00:01]} 83. Rd4 {[%clk 0:00:03]}  Kf8 {[%clk 0:00:01]} 84. Rd7 {[%clk 0:00:03]}  Re6+ {[%clk 0:00:01]} 85. Bf6 {[%clk 0:00:03]}  Ke8 {[%clk 0:00:02]} 86. Rd5 {[%clk 0:00:03]}  Re1 {[%clk 0:00:02]} 87. Rd8# {[%clk 0:00:03]} 1-0


[Site "https://www.chess.com"]

[Event "Titled Tuesday Blitz March 14 Late 2023"]
[White "Caruana, Fabiano"]
[Black "Lenderman, Aleksandr"]
[WhiteFideId "2020009"]
[BlackFideId "2021285"]
[WhiteElo "2818"]
[BlackElo "2607"]
[Result "1-0"]
[Round "07"]
[TimeControl "180+2"]
[Date "2023.03.14"]
[WhiteClock "0:00:48"]
[BlackClock "0:01:04"]

1. c4 {[%clk 0:03:00]}  e5 {[%clk 0:02:59]} 2. Nc3 {[%clk 0:03:00]}  d6 {[%clk 0:02:52]} 3. Nf3 {[%clk 0:02:58]}  f5 {[%clk 0:02:50]} 4. g3 {[%clk 0:02:58]}  Be7 {[%clk 0:02:50]} 5. d3 {[%clk 0:02:52]}  Nf6 {[%clk 0:02:50]} 6. Bh3 {[%clk 0:02:50]}  O-O {[%clk 0:02:49]} 7. O-O {[%clk 0:02:50]}  c6 {[%clk 0:02:48]} 8. b4 {[%clk 0:02:50]}  Ng4 {[%clk 0:02:45]} 9. Bg2 {[%clk 0:02:46]}  Be6 {[%clk 0:02:42]} 10. b5 {[%clk 0:02:44]}  Nd7 {[%clk 0:02:26]} 11. h3 {[%clk 0:02:43]}  Nh6 {[%clk 0:02:26]} 12. Bxh6 {[%clk 0:02:42]}  gxh6 {[%clk 0:02:26]} 13. Rb1 {[%clk 0:02:39]}  Qc7 {[%clk 0:02:25]} 14. e3 {[%clk 0:02:30]}  Bf6 {[%clk 0:02:22]} 15. Nd2 {[%clk 0:02:24]}  Nc5 {[%clk 0:02:19]} 16. Qc2 {[%clk 0:02:22]}  f4 {[%clk 0:02:16]} 17. bxc6 {[%clk 0:02:16]}  bxc6 {[%clk 0:02:16]} 18. Nde4 {[%clk 0:02:16]}  Bg7 {[%clk 0:02:15]} 19. Nxc5 {[%clk 0:02:13]}  dxc5 {[%clk 0:02:16]} 20. Qe2 {[%clk 0:02:11]}  Qf7 {[%clk 0:02:02]} 21. Qf3 {[%clk 0:01:52]}  Rac8 {[%clk 0:02:02]} 22. Ne4 {[%clk 0:01:46]}  Qe7 {[%clk 0:02:02]} 23. Qh5 {[%clk 0:01:42]}  Rf5 {[%clk 0:01:55]} 24. Qd1 {[%clk 0:01:33]}  Rcf8 {[%clk 0:01:53]} 25. Bf3 {[%clk 0:01:24]}  fxe3 {[%clk 0:01:42]} 26. fxe3 {[%clk 0:01:24]}  R5f7 {[%clk 0:01:42]} 27. Kg2 {[%clk 0:01:09]}  Bf5 {[%clk 0:01:39]} 28. Qe2 {[%clk 0:01:07]}  Qe6 {[%clk 0:01:34]} 29. Bg4 {[%clk 0:00:56]}  Bxe4+ {[%clk 0:01:22]} 30. dxe4 {[%clk 0:00:56]}  Qe7 {[%clk 0:01:19]} 31. Bf5 {[%clk 0:00:57]}  Rd8 {[%clk 0:01:19]} 32. Rb2 {[%clk 0:00:55]}  Qd6 {[%clk 0:01:10]} 33. h4 {[%clk 0:00:54]}  Kh8 {[%clk 0:01:07]} 34. Rfb1 {[%clk 0:00:51]}  Rff8 {[%clk 0:01:03]} 35. Kh3 {[%clk 0:00:50]}  Qd3 {[%clk 0:01:03]} 36. Qxd3 {[%clk 0:00:48]}  Rxd3 {[%clk 0:01:04]} 37. Rb7 {[%clk 0:00:48]} 1-0


[Site "https://www.chess.com"]

[Event "Titled Tuesday Blitz March 14 Late 2023"]
[White "Chigaev, Maksim"]
[Black "Bluebaum, Matthias"]
[WhiteFideId "4108116"]
[BlackFideId "24651516"]
[WhiteElo "2547"]
[BlackElo "2638"]
[Result "1/2-1/2"]
[Round "07"]
[TimeControl "180+2"]
[Date "2023.03.14"]
[WhiteClock "0:00:06"]
[BlackClock "0:00:07"]

1. c4 {[%clk 0:03:00]}  e6 {[%clk 0:02:59]} 2. g3 {[%clk 0:02:59]}  d5 {[%clk 0:03:00]} 3. Bg2 {[%clk 0:03:00]}  Nf6 {[%clk 0:03:00]} 4. Nf3 {[%clk 0:03:01]}  Nc6 {[%clk 0:03:01]} 5. O-O {[%clk 0:02:58]}  Bd6 {[%clk 0:03:02]} 6. d4 {[%clk 0:02:52]}  O-O {[%clk 0:03:02]} 7. Bg5 {[%clk 0:02:42]}  h6 {[%clk 0:03:01]} 8. Bxf6 {[%clk 0:02:41]}  Qxf6 {[%clk 0:03:02]} 9. cxd5 {[%clk 0:02:37]}  exd5 {[%clk 0:03:03]} 10. Nc3 {[%clk 0:02:38]}  Ne7 {[%clk 0:03:04]} 11. e4 {[%clk 0:02:37]}  dxe4 {[%clk 0:03:04]} 12. Nxe4 {[%clk 0:02:37]}  Qe6 {[%clk 0:03:05]} 13. Re1 {[%clk 0:02:37]}  c6 {[%clk 0:03:06]} 14. Nc5 {[%clk 0:02:31]}  Qf6 {[%clk 0:02:55]} 15. Ne5 {[%clk 0:02:29]}  Rd8 {[%clk 0:02:34]} 16. Qb3 {[%clk 0:01:27]}  Bc7 {[%clk 0:02:23]} 17. Rad1 {[%clk 0:01:11]}  Nd5 {[%clk 0:02:07]} 18. a3 {[%clk 0:00:54]}  Bb6 {[%clk 0:02:03]} 19. h3 {[%clk 0:00:47]}  Bf5 {[%clk 0:01:54]} 20. Nxb7 {[%clk 0:00:40]}  Rdb8 {[%clk 0:01:29]} 21. Nxc6 {[%clk 0:00:40]}  Rxb7 {[%clk 0:01:29]} 22. Qxd5 {[%clk 0:00:40]}  Rc8 {[%clk 0:00:55]} 23. Ne7+ {[%clk 0:00:26]}  Rxe7 {[%clk 0:00:55]} 24. Rxe7 {[%clk 0:00:26]}  Qxe7 {[%clk 0:00:46]} 25. Qxf5 {[%clk 0:00:27]}  Rd8 {[%clk 0:00:47]} 26. Bd5 {[%clk 0:00:15]}  Rd6 {[%clk 0:00:44]} 27. Kg2 {[%clk 0:00:09]}  g6 {[%clk 0:00:42]} 28. Qf3 {[%clk 0:00:06]}  Kg7 {[%clk 0:00:41]} 29. Rd2 {[%clk 0:00:05]}  Qd7 {[%clk 0:00:39]} 30. Bb3 {[%clk 0:00:04]}  Bxd4 {[%clk 0:00:36]} 31. Bc4 {[%clk 0:00:05]}  Qc7 {[%clk 0:00:28]} 32. b3 {[%clk 0:00:04]}  Rf6 {[%clk 0:00:24]} 33. Qe4 {[%clk 0:00:05]}  Bc5 {[%clk 0:00:24]} 34. Qd5 {[%clk 0:00:04]}  Qb6 {[%clk 0:00:21]} 35. Qe5 {[%clk 0:00:03]}  Bxf2 {[%clk 0:00:14]} 36. Rd3 {[%clk 0:00:03]}  Bc5 {[%clk 0:00:10]} 37. Rf3 {[%clk 0:00:04]}  Bd4 {[%clk 0:00:09]} 38. Rxf6 {[%clk 0:00:03]}  Bxe5 {[%clk 0:00:09]} 39. Rxb6 {[%clk 0:00:03]}  axb6 {[%clk 0:00:10]} 40. a4 {[%clk 0:00:04]}  f5 {[%clk 0:00:10]} 41. Kf3 {[%clk 0:00:04]}  Kf6 {[%clk 0:00:10]} 42. g4 {[%clk 0:00:04]}  Bd6 {[%clk 0:00:09]} 43. Bd3 {[%clk 0:00:04]}  Ke5 {[%clk 0:00:10]} 44. Bc2 {[%clk 0:00:05]}  Bb4 {[%clk 0:00:10]} 45. Bd3 {[%clk 0:00:05]}  Kd4 {[%clk 0:00:09]} 46. Bb1 {[%clk 0:00:05]}  fxg4+ {[%clk 0:00:06]} 47. hxg4 {[%clk 0:00:05]}  g5 {[%clk 0:00:06]} 48. Bg6 {[%clk 0:00:05]}  Kc3 {[%clk 0:00:06]} 49. Bf7 {[%clk 0:00:05]}  Kd3 {[%clk 0:00:07]} 50. Bg8 {[%clk 0:00:05]}  Kd4 {[%clk 0:00:07]} 51. Bf7 {[%clk 0:00:06]}  Kd3 {[%clk 0:00:07]} 1/2-1/2


[Site "https://www.chess.com"]